[Event "Titled Tuesday Blitz February 28 Late 2023"]
[White "benny_aizenberg"]
[Black "Carrasco Miranda, Andres"]
[BlackFideId "3405990"]
[WhiteElo "2573"]
[BlackElo "2183"]
[Result "1-0"]
[Round "02"]
[TimeControl "180+2"]
[Date "2023.02.28"]
[WhiteClock "0:00:24"]
[BlackClock "0:00:05"]

1. b3 {[%clk 0:02:55]}  e5 {[%clk 0:02:59]} 2. Bb2 {[%clk 0:02:55]}  Nc6 {[%clk 0:02:59]} 3. Nf3 {[%clk 0:02:52]}  e4 {[%clk 0:02:52]} 4. Nd4 {[%clk 0:02:51]}  Nf6 {[%clk 0:02:50]} 5. Nxc6 {[%clk 0:02:46]}  dxc6 {[%clk 0:02:49]} 6. e3 {[%clk 0:02:44]}  Bg4 {[%clk 0:02:45]} 7. Be2 {[%clk 0:02:44]}  h5 {[%clk 0:02:45]} 8. h3 {[%clk 0:02:32]}  Bxe2 {[%clk 0:02:41]} 9. Qxe2 {[%clk 0:02:33]}  Rh6 {[%clk 0:02:41]} 10. Nc3 {[%clk 0:02:24]}  Qd7 {[%clk 0:02:40]} 11. O-O-O {[%clk 0:02:24]}  O-O-O {[%clk 0:02:40]} 12. d3 {[%clk 0:02:23]}  Qe6 {[%clk 0:02:17]} 13. dxe4 {[%clk 0:02:21]}  Rxd1+ {[%clk 0:02:18]} 14. Rxd1 {[%clk 0:02:20]}  Nxe4 {[%clk 0:02:18]} 15. Nxe4 {[%clk 0:02:16]}  Qxe4 {[%clk 0:02:19]} 16. f3 {[%clk 0:02:17]}  Qe6 {[%clk 0:02:13]} 17. e4 {[%clk 0:02:16]}  Rg6 {[%clk 0:02:02]} 18. g4 {[%clk 0:02:03]}  hxg4 {[%clk 0:02:02]} 19. hxg4 {[%clk 0:02:03]}  Rh6 {[%clk 0:02:02]} 20. f4 {[%clk 0:02:00]}  Rh4 {[%clk 0:01:53]} 21. f5 {[%clk 0:01:51]}  Qh6+ {[%clk 0:01:52]} 22. Kb1 {[%clk 0:01:51]}  Rh1 {[%clk 0:01:23]} 23. Bc1 {[%clk 0:01:43]}  Rxd1 {[%clk 0:01:04]} 24. Qxd1 {[%clk 0:01:42]}  Qh3 {[%clk 0:00:58]} 25. e5 {[%clk 0:01:37]}  Bc5 {[%clk 0:00:35]} 26. e6 {[%clk 0:01:28]}  fxe6 {[%clk 0:00:34]} 27. fxe6 {[%clk 0:01:29]}  b5 {[%clk 0:00:27]} 28. Qd7+ {[%clk 0:01:26]}  Kb7 {[%clk 0:00:21]} 29. e7 {[%clk 0:01:25]}  Bxe7 {[%clk 0:00:20]} 30. Qxe7 {[%clk 0:01:26]}  Qxg4 {[%clk 0:00:20]} 31. Qe5 {[%clk 0:01:21]}  a5 {[%clk 0:00:17]} 32. Bf4 {[%clk 0:01:21]}  Qd7 {[%clk 0:00:18]} 33. Kb2 {[%clk 0:01:19]}  g6 {[%clk 0:00:18]} 34. Qf6 {[%clk 0:01:17]}  Qf5 {[%clk 0:00:18]} 35. Qxf5 {[%clk 0:01:17]}  gxf5 {[%clk 0:00:19]} 36. Kc3 {[%clk 0:01:17]}  c5 {[%clk 0:00:19]} 37. Kd3 {[%clk 0:01:15]}  Kc6 {[%clk 0:00:19]} 38. c4 {[%clk 0:01:08]}  a4 {[%clk 0:00:17]} 39. Kc3 {[%clk 0:00:42]}  Kb6 {[%clk 0:00:15]} 40. cxb5 {[%clk 0:00:32]}  Kxb5 {[%clk 0:00:14]} 41. Bxc7 {[%clk 0:00:33]}  Kc6 {[%clk 0:00:11]} 42. Bh2 {[%clk 0:00:31]}  Kd5 {[%clk 0:00:11]} 43. Bb8 {[%clk 0:00:30]}  Kc6 {[%clk 0:00:06]} 44. Kc4 {[%clk 0:00:30]}  Kb6 {[%clk 0:00:06]} 45. Bh2 {[%clk 0:00:27]}  Kc6 {[%clk 0:00:06]} 46. Bf4 {[%clk 0:00:22]}  Kb6 {[%clk 0:00:06]} 47. Be3 {[%clk 0:00:23]}  Kc6 {[%clk 0:00:06]} 48. Bxc5 {[%clk 0:00:23]}  f4 {[%clk 0:00:06]} 49. b4 {[%clk 0:00:23]}  f3 {[%clk 0:00:06]} 50. b5+ {[%clk 0:00:24]}  Kb7 {[%clk 0:00:06]} 51. Kb4 {[%clk 0:00:24]}  Kc7 {[%clk 0:00:05]} 52. Kxa4 {[%clk 0:00:24]} 1-0


[Site "https://www.chess.com"]

[Event "Titled Tuesday Blitz February 28 Late 2023"]
[White "Estrada Nieto, Julian"]
[Black "Koellner, Ruben Gideon"]
[WhiteFideId "5101018"]
[BlackFideId "12993093"]
[WhiteElo "2176"]
[BlackElo "2303"]
[Result "1/2-1/2"]
[Round "02"]
[TimeControl "180+2"]
[Date "2023.02.28"]
[WhiteClock "0:00:10"]
[BlackClock "0:00:11"]

1. e4 {[%clk 0:02:58]}  d6 {[%clk 0:03:00]} 2. d4 {[%clk 0:02:57]}  Nf6 {[%clk 0:03:00]} 3. Nc3 {[%clk 0:02:58]}  e5 {[%clk 0:03:01]} 4. Nf3 {[%clk 0:02:58]}  Nbd7 {[%clk 0:03:01]} 5. Bc4 {[%clk 0:02:59]}  Be7 {[%clk 0:03:02]} 6. O-O {[%clk 0:02:59]}  c6 {[%clk 0:03:02]} 7. Re1 {[%clk 0:03:00]}  h6 {[%clk 0:03:03]} 8. a4 {[%clk 0:03:00]}  Qc7 {[%clk 0:03:04]} 9. b3 {[%clk 0:03:00]}  Nf8 {[%clk 0:03:04]} 10. Bb2 {[%clk 0:02:59]}  Ng6 {[%clk 0:03:05]} 11. h3 {[%clk 0:02:55]}  O-O {[%clk 0:03:05]} 12. Bd3 {[%clk 0:02:54]}  b6 {[%clk 0:03:05]} 13. Ne2 {[%clk 0:02:53]}  a6 {[%clk 0:03:05]} 14. c4 {[%clk 0:02:51]}  c5 {[%clk 0:03:00]} 15. d5 {[%clk 0:02:49]}  Nh5 {[%clk 0:02:57]} 16. Kh2 {[%clk 0:02:45]}  Nhf4 {[%clk 0:02:56]} 17. Nxf4 {[%clk 0:02:45]}  Nxf4 {[%clk 0:02:57]} 18. Bf1 {[%clk 0:02:45]}  f5 {[%clk 0:02:56]} 19. g3 {[%clk 0:02:41]}  fxe4 {[%clk 0:02:43]} 20. Rxe4 {[%clk 0:02:37]}  Bf5 {[%clk 0:02:40]} 21. Re1 {[%clk 0:02:28]}  Ng6 {[%clk 0:02:32]} 22. Bd3 {[%clk 0:02:21]}  Qd7 {[%clk 0:02:30]} 23. Kg1 {[%clk 0:02:12]}  Bxd3 {[%clk 0:02:21]} 24. Qxd3 {[%clk 0:02:11]}  Qxh3 {[%clk 0:02:21]} 25. Qxg6 {[%clk 0:01:58]}  Rxf3 {[%clk 0:02:20]} 26. Re4 {[%clk 0:01:48]}  Rxf2 {[%clk 0:01:19]} 27. Kxf2 {[%clk 0:01:38]}  Qh2+ {[%clk 0:01:19]} 28. Kf3 {[%clk 0:01:22]}  Qxb2 {[%clk 0:00:41]} 29. Rae1 {[%clk 0:01:08]}  Rf8+ {[%clk 0:00:38]} 30. Kg4 {[%clk 0:01:08]}  Qf2 {[%clk 0:00:21]} 31. Qe6+ {[%clk 0:00:59]}  Rf7 {[%clk 0:00:20]} 32. R4e3 {[%clk 0:00:56]}  Bg5 {[%clk 0:00:17]} 33. R3e2 {[%clk 0:00:41]}  Qf3+ {[%clk 0:00:15]} 34. Kh3 {[%clk 0:00:40]}  Kh7 {[%clk 0:00:09]} 35. Qg4 {[%clk 0:00:38]}  g6 {[%clk 0:00:03]} 36. Qxf3 {[%clk 0:00:30]}  Rxf3 {[%clk 0:00:04]} 37. Rb1 {[%clk 0:00:29]}  Kg7 {[%clk 0:00:04]} 38. Kg2 {[%clk 0:00:29]}  Rc3 {[%clk 0:00:04]} 39. a5 {[%clk 0:00:27]}  bxa5 {[%clk 0:00:04]} 40. Ra2 {[%clk 0:00:27]}  h5 {[%clk 0:00:04]} 41. Rxa5 {[%clk 0:00:27]}  e4 {[%clk 0:00:04]} 42. Rxa6 {[%clk 0:00:26]}  Rc2+ {[%clk 0:00:04]} 43. Kh3 {[%clk 0:00:26]}  e3 {[%clk 0:00:02]} 44. Rxd6 {[%clk 0:00:26]}  e2 {[%clk 0:00:03]} 45. Re6 {[%clk 0:00:25]}  Bf6 {[%clk 0:00:02]} 46. Re1 {[%clk 0:00:24]}  Bd4 {[%clk 0:00:02]} 47. R1xe2 {[%clk 0:00:23]}  Rc3 {[%clk 0:00:03]} 48. d6 {[%clk 0:00:20]}  Bf6 {[%clk 0:00:03]} 49. d7 {[%clk 0:00:20]}  Rd3 {[%clk 0:00:04]} 50. Rc6 {[%clk 0:00:16]}  h4 {[%clk 0:00:04]} 51. Rxc5 {[%clk 0:00:09]}  Rxg3+ {[%clk 0:00:04]} 52. Kh2 {[%clk 0:00:10]}  Rxb3 {[%clk 0:00:05]} 53. Rd5 {[%clk 0:00:09]}  Rb8 {[%clk 0:00:05]} 54. Re8 {[%clk 0:00:09]}  Bd8 {[%clk 0:00:05]} 55. Rc5 {[%clk 0:00:07]}  g5 {[%clk 0:00:05]} 56. Rc8 {[%clk 0:00:07]}  Rb2+ {[%clk 0:00:05]} 57. Kh3 {[%clk 0:00:08]}  Rb3+ {[%clk 0:00:05]} 58. Kg4 {[%clk 0:00:08]}  Rg3+ {[%clk 0:00:06]} 59. Kf5 {[%clk 0:00:08]}  Rf3+ {[%clk 0:00:06]} 60. Ke4 {[%clk 0:00:08]}  Rf4+ {[%clk 0:00:06]} 61. Kd5 {[%clk 0:00:09]}  Bf6 {[%clk 0:00:06]} 62. Rg8+ {[%clk 0:00:08]}  Kf7 {[%clk 0:00:06]} 63. d8=Q {[%clk 0:00:09]}  Rd4+ {[%clk 0:00:06]} 64. Kc6 {[%clk 0:00:09]}  Bxd8 {[%clk 0:00:06]} 65. Rcxd8 {[%clk 0:00:10]}  Rxc4+ {[%clk 0:00:06]} 66. Kb5 {[%clk 0:00:10]}  Rf4 {[%clk 0:00:06]} 67. Rdf8+ {[%clk 0:00:10]}  Ke6 {[%clk 0:00:06]} 68. Rxf4 {[%clk 0:00:11]}  gxf4 {[%clk 0:00:07]} 69. Rg4 {[%clk 0:00:11]}  Kf5 {[%clk 0:00:08]} 70. Rxh4 {[%clk 0:00:11]}  f3 {[%clk 0:00:08]} 71. Rh1 {[%clk 0:00:11]}  Ke4 {[%clk 0:00:08]} 72. Kc4 {[%clk 0:00:12]}  f2 {[%clk 0:00:08]} 73. Kc3 {[%clk 0:00:12]}  Ke3 {[%clk 0:00:08]} 74. Kc2 {[%clk 0:00:12]}  Ke2 {[%clk 0:00:09]} 75. Rh2 {[%clk 0:00:12]}  Ke1 {[%clk 0:00:10]} 76. Rh1+ {[%clk 0:00:10]}  f1=Q {[%clk 0:00:10]} 77. Rxf1+ {[%clk 0:00:10]}  Kxf1 {[%clk 0:00:11]} 1/2-1/2


[Site "https://www.chess.com"]

[Event "Titled Tuesday Blitz February 28 Late 2023"]
[White "Van Foreest, Machteld"]
[Black "Pert, Richard G"]
[WhiteFideId "1051563"]
[BlackFideId "404748"]
[WhiteElo "2018"]
[BlackElo "2441"]
[Result "0-1"]
[Round "02"]
[TimeControl "180+2"]
[Date "2023.02.28"]
[WhiteClock "0:00:06"]
[BlackClock "0:00:30"]

1. e4 {[%clk 0:03:00]}  c5 {[%clk 0:02:56]} 2. Nf3 {[%clk 0:03:00]}  d6 {[%clk 0:02:56]} 3. d4 {[%clk 0:02:59]}  cxd4 {[%clk 0:02:56]} 4. Nxd4 {[%clk 0:02:59]}  Nf6 {[%clk 0:02:56]} 5. Nc3 {[%clk 0:02:59]}  g6 {[%clk 0:02:57]} 6. Be3 {[%clk 0:02:58]}  Bg7 {[%clk 0:02:57]} 7. f3 {[%clk 0:02:58]}  Nc6 {[%clk 0:02:58]} 8. Qd2 {[%clk 0:02:58]}  O-O {[%clk 0:02:58]} 9. O-O-O {[%clk 0:02:58]}  d5 {[%clk 0:02:57]} 10. exd5 {[%clk 0:02:57]}  Nxd5 {[%clk 0:02:57]} 11. Nxc6 {[%clk 0:02:56]}  bxc6 {[%clk 0:02:57]} 12. Bd4 {[%clk 0:02:55]}  Bxd4 {[%clk 0:02:47]} 13. Qxd4 {[%clk 0:02:54]}  Qb6 {[%clk 0:02:48]} 14. Nxd5 {[%clk 0:02:38]}  cxd5 {[%clk 0:02:46]} 15. Qxb6 {[%clk 0:02:38]}  axb6 {[%clk 0:02:46]} 16. Kb1 {[%clk 0:02:38]}  e6 {[%clk 0:02:45]} 17. c4 {[%clk 0:02:38]}  Bb7 {[%clk 0:02:43]} 18. b3 {[%clk 0:02:32]}  Kg7 {[%clk 0:02:42]} 19. Bd3 {[%clk 0:02:25]}  Rfc8 {[%clk 0:02:39]} 20. Rd2 {[%clk 0:02:02]}  Kf6 {[%clk 0:02:38]} 21. Rhd1 {[%clk 0:02:00]}  h5 {[%clk 0:02:31]} 22. f4 {[%clk 0:01:51]}  h4 {[%clk 0:02:26]} 23. g3 {[%clk 0:01:48]}  hxg3 {[%clk 0:02:22]} 24. hxg3 {[%clk 0:01:49]}  Rh8 {[%clk 0:02:21]} 25. g4 {[%clk 0:01:47]}  Rh4 {[%clk 0:02:17]} 26. f5 {[%clk 0:01:20]}  dxc4 {[%clk 0:01:52]} 27. bxc4 {[%clk 0:00:54]}  gxf5 {[%clk 0:01:35]} 28. gxf5 {[%clk 0:00:53]}  exf5 {[%clk 0:01:34]} 29. Bc2 {[%clk 0:00:37]}  Re8 {[%clk 0:01:25]} 30. Rf1 {[%clk 0:00:23]}  Be4 {[%clk 0:01:23]} 31. Bxe4 {[%clk 0:00:15]}  Rhxe4 {[%clk 0:01:20]} 32. Rd5 {[%clk 0:00:14]}  R8e5 {[%clk 0:01:19]} 33. Rd6+ {[%clk 0:00:14]}  Re6 {[%clk 0:01:19]} 34. Rd5 {[%clk 0:00:14]}  R4e5 {[%clk 0:01:12]} 35. Rd4 {[%clk 0:00:14]}  Rc5 {[%clk 0:01:08]} 36. Kc2 {[%clk 0:00:14]}  b5 {[%clk 0:01:06]} 37. Kc3 {[%clk 0:00:14]}  bxc4 {[%clk 0:00:58]} 38. Rxc4 {[%clk 0:00:15]}  Re3+ {[%clk 0:00:53]} 39. Kb4 {[%clk 0:00:15]}  Rxc4+ {[%clk 0:00:43]} 40. Kxc4 {[%clk 0:00:16]}  Ra3 {[%clk 0:00:42]} 41. Rf2 {[%clk 0:00:16]}  Ke5 {[%clk 0:00:41]} 42. Kb4 {[%clk 0:00:15]}  Ra8 {[%clk 0:00:41]} 43. a4 {[%clk 0:00:15]}  f4 {[%clk 0:00:41]} 44. Ra2 {[%clk 0:00:08]}  f3 {[%clk 0:00:40]} 45. Kc3 {[%clk 0:00:08]}  Kf4 {[%clk 0:00:39]} 46. Kd3 {[%clk 0:00:08]}  Rd8+ {[%clk 0:00:35]} 47. Kc2 {[%clk 0:00:07]}  f2 {[%clk 0:00:32]} 48. Ra1 {[%clk 0:00:07]}  Ke3 {[%clk 0:00:32]} 49. a5 {[%clk 0:00:07]}  Ke2 {[%clk 0:00:30]} 50. a6 {[%clk 0:00:06]} 0-1


[Site "https://www.chess.com"]

[Event "Titled Tuesday Blitz February 28 Late 2023"]
[White "Boder, Jan"]
[Black "Martic, Ivan"]
[WhiteFideId "16243226"]
[BlackFideId "929301"]
[WhiteElo "2241"]
[BlackElo "2360"]
[Result "0-1"]
[Round "02"]
[TimeControl "180+2"]
[Date "2023.02.28"]
[WhiteClock "0:00:28"]
[BlackClock "0:01:48"]

1. c4 {[%clk 0:02:59]}  g6 {[%clk 0:02:58]} 2. g3 {[%clk 0:03:00]}  Bg7 {[%clk 0:02:58]} 3. Bg2 {[%clk 0:03:01]}  d6 {[%clk 0:02:58]} 4. Nc3 {[%clk 0:03:01]}  e5 {[%clk 0:02:56]} 5. Nf3 {[%clk 0:02:59]}  f5 {[%clk 0:02:56]} 6. O-O {[%clk 0:02:58]}  Nf6 {[%clk 0:02:56]} 7. d4 {[%clk 0:02:57]}  e4 {[%clk 0:02:56]} 8. Ne1 {[%clk 0:02:56]}  O-O {[%clk 0:02:56]} 9. Nc2 {[%clk 0:02:56]}  Nc6 {[%clk 0:02:54]} 10. e3 {[%clk 0:02:55]}  Ne7 {[%clk 0:02:50]} 11. b4 {[%clk 0:02:53]}  g5 {[%clk 0:02:50]} 12. d5 {[%clk 0:02:53]}  Ng4 {[%clk 0:02:40]} 13. Bb2 {[%clk 0:02:49]}  Ne5 {[%clk 0:02:37]} 14. Na3 {[%clk 0:02:15]}  Nd3 {[%clk 0:02:35]} 15. Qb3 {[%clk 0:01:59]}  Ng6 {[%clk 0:02:28]} 16. Rfd1 {[%clk 0:01:57]}  Nge5 {[%clk 0:02:24]} 17. Bf1 {[%clk 0:01:57]}  Nf3+ {[%clk 0:02:21]} 18. Kg2 {[%clk 0:01:56]}  Nxb2 {[%clk 0:02:20]} 19. Qxb2 {[%clk 0:01:54]}  Qf6 {[%clk 0:02:20]} 20. Rac1 {[%clk 0:01:49]}  Qh6 {[%clk 0:02:20]} 21. h3 {[%clk 0:01:49]}  f4 {[%clk 0:02:19]} 22. h4 {[%clk 0:01:21]}  fxg3 {[%clk 0:02:16]} 23. fxg3 {[%clk 0:01:10]}  gxh4 {[%clk 0:02:16]} 24. Qf2 {[%clk 0:01:03]}  Bh3+ {[%clk 0:01:53]} 25. Kh1 {[%clk 0:01:00]}  hxg3 {[%clk 0:01:51]} 26. Qe1 {[%clk 0:00:28]}  Bxf1# {[%clk 0:01:48]} 0-1


[Site "https://www.chess.com"]

[Event "Titled Tuesday Blitz February 28 Late 2023"]
[White "Martin Carmona, Gaston Manuel"]
[Black "mohsengabr2002"]
[WhiteFideId "22284567"]
[WhiteElo "2245"]
[BlackElo "2342"]
[Result "1-0"]
[Round "02"]
[TimeControl "180+2"]
[Date "2023.02.28"]
[WhiteClock "0:00:34"]
[BlackClock "0:00:57"]

1. Nf3 {[%clk 0:02:56]}  d5 {[%clk 0:02:59]} 2. d4 {[%clk 0:02:55]}  Nc6 {[%clk 0:02:59]} 3. e3 {[%clk 0:02:53]}  Bf5 {[%clk 0:02:59]} 4. Be2 {[%clk 0:02:52]}  e6 {[%clk 0:02:59]} 5. O-O {[%clk 0:02:52]}  Nf6 {[%clk 0:02:58]} 6. Nh4 {[%clk 0:02:50]}  Be4 {[%clk 0:02:58]} 7. Nd2 {[%clk 0:02:49]}  Bd6 {[%clk 0:02:58]} 8. c4 {[%clk 0:02:45]}  O-O {[%clk 0:02:55]} 9. c5 {[%clk 0:02:44]}  Be7 {[%clk 0:02:54]} 10. Nxe4 {[%clk 0:02:43]}  dxe4 {[%clk 0:02:54]} 11. g3 {[%clk 0:02:43]}  Nd5 {[%clk 0:02:51]} 12. Ng2 {[%clk 0:02:43]}  f5 {[%clk 0:02:51]} 13. Bc4 {[%clk 0:02:38]}  g5 {[%clk 0:02:50]} 14. a3 {[%clk 0:02:35]}  a5 {[%clk 0:02:50]} 15. Qb3 {[%clk 0:02:33]}  Ra7 {[%clk 0:02:45]} 16. Bd2 {[%clk 0:02:28]}  a4 {[%clk 0:02:41]} 17. Qc2 {[%clk 0:02:26]}  Qd7 {[%clk 0:02:35]} 18. f3 {[%clk 0:02:25]}  exf3 {[%clk 0:02:29]} 19. Rxf3 {[%clk 0:02:26]}  Kg7 {[%clk 0:02:22]} 20. Raf1 {[%clk 0:02:24]}  Bf6 {[%clk 0:02:19]} 21. Bc3 {[%clk 0:02:12]}  Qe7 {[%clk 0:02:01]} 22. Bxd5 {[%clk 0:02:09]}  exd5 {[%clk 0:02:00]} 23. Rxf5 {[%clk 0:02:02]}  Qe6 {[%clk 0:01:53]} 24. e4 {[%clk 0:01:54]}  Bxd4+ {[%clk 0:01:46]} 25. Bxd4+ {[%clk 0:01:54]}  Nxd4 {[%clk 0:01:46]} 26. Rxg5+ {[%clk 0:01:54]}  Kh6 {[%clk 0:01:34]} 27. Qd2 {[%clk 0:01:40]}  Rxf1+ {[%clk 0:01:17]} 28. Kxf1 {[%clk 0:01:41]}  Nf3 {[%clk 0:01:17]} 29. Qf4 {[%clk 0:00:58]}  Nxg5 {[%clk 0:01:17]} 30. Qh4+ {[%clk 0:00:58]}  Kg7 {[%clk 0:01:15]} 31. Qxg5+ {[%clk 0:00:58]}  Kf8 {[%clk 0:01:14]} 32. exd5 {[%clk 0:00:56]}  Qe7 {[%clk 0:01:07]} 33. Qh6+ {[%clk 0:00:49]}  Qg7 {[%clk 0:01:07]} 34. Qd2 {[%clk 0:00:45]}  Ra8 {[%clk 0:01:04]} 35. Nf4 {[%clk 0:00:46]}  Kg8 {[%clk 0:01:02]} 36. d6 {[%clk 0:00:43]}  Rd8 {[%clk 0:00:59]} 37. Qd5+ {[%clk 0:00:38]}  Qf7 {[%clk 0:00:57]} 38. Qg5+ {[%clk 0:00:34]} 1-0


[Site "https://www.chess.com"]

[Event "Titled Tuesday Blitz February 28 Late 2023"]
[White "Sadovsky, Artem"]
[Black "Kostiukov, Alexandr"]
[WhiteFideId "4155840"]
[BlackFideId "14108100"]
[WhiteElo "2314"]
[BlackElo "2202"]
[Result "1-0"]
[Round "02"]
[TimeControl "180+2"]
[Date "2023.02.28"]
[WhiteClock "0:00:03"]
[BlackClock "0:00:01"]

1. Nf3 {[%clk 0:02:58]}  g6 {[%clk 0:03:00]} 2. e3 {[%clk 0:02:59]}  Bg7 {[%clk 0:03:00]} 3. c4 {[%clk 0:02:58]}  d6 {[%clk 0:02:58]} 4. d4 {[%clk 0:02:57]}  e5 {[%clk 0:02:58]} 5. dxe5 {[%clk 0:02:54]}  dxe5 {[%clk 0:02:59]} 6. Qxd8+ {[%clk 0:02:53]}  Kxd8 {[%clk 0:03:00]} 7. Nc3 {[%clk 0:02:36]}  f6 {[%clk 0:02:54]} 8. b3 {[%clk 0:02:34]}  c6 {[%clk 0:02:51]} 9. Ba3 {[%clk 0:02:33]}  Nd7 {[%clk 0:02:50]} 10. O-O-O {[%clk 0:02:31]}  Nh6 {[%clk 0:02:49]} 11. Ne4 {[%clk 0:02:30]}  Nf7 {[%clk 0:02:48]} 12. Nc5 {[%clk 0:02:14]}  Re8 {[%clk 0:02:39]} 13. Nd2 {[%clk 0:01:27]}  Kc7 {[%clk 0:02:37]} 14. Nde4 {[%clk 0:01:24]}  f5 {[%clk 0:02:16]} 15. Nxd7 {[%clk 0:01:17]}  fxe4 {[%clk 0:01:55]} 16. Nc5 {[%clk 0:01:15]}  Bf8 {[%clk 0:01:53]} 17. Kb2 {[%clk 0:01:07]}  Bg4 {[%clk 0:01:31]} 18. f3 {[%clk 0:01:06]}  exf3 {[%clk 0:01:28]} 19. gxf3 {[%clk 0:01:07]}  Bxc5 {[%clk 0:00:45]} 20. fxg4 {[%clk 0:01:07]}  Bxe3 {[%clk 0:00:38]} 21. Bg2 {[%clk 0:00:57]}  Rad8 {[%clk 0:00:36]} 22. Kc2 {[%clk 0:00:56]}  c5 {[%clk 0:00:24]} 23. Bd5 {[%clk 0:00:51]}  Nd6 {[%clk 0:00:22]} 24. Rhe1 {[%clk 0:00:49]}  Bd4 {[%clk 0:00:22]} 25. Rf1 {[%clk 0:00:48]}  Rf8 {[%clk 0:00:21]} 26. h4 {[%clk 0:00:48]}  b5 {[%clk 0:00:19]} 27. Kd3 {[%clk 0:00:47]}  b4 {[%clk 0:00:19]} 28. Bc1 {[%clk 0:00:46]}  a5 {[%clk 0:00:19]} 29. Bh6 {[%clk 0:00:45]}  Rxf1 {[%clk 0:00:18]} 30. Rxf1 {[%clk 0:00:46]}  a4 {[%clk 0:00:18]} 31. h5 {[%clk 0:00:31]}  axb3 {[%clk 0:00:18]} 32. axb3 {[%clk 0:00:27]}  e4+ {[%clk 0:00:17]} 33. Bxe4 {[%clk 0:00:22]}  Nxe4 {[%clk 0:00:09]} 34. Kxe4 {[%clk 0:00:23]}  gxh5 {[%clk 0:00:08]} 35. gxh5 {[%clk 0:00:16]}  Re8+ {[%clk 0:00:08]} 36. Kd3 {[%clk 0:00:10]}  Re5 {[%clk 0:00:07]} 37. Rf7+ {[%clk 0:00:08]}  Kc6 {[%clk 0:00:07]} 38. Bf4 {[%clk 0:00:02]}  Rxh5 {[%clk 0:00:06]} 39. Rc7+ {[%clk 0:00:03]}  Kb6 {[%clk 0:00:06]} 40. Rd7 {[%clk 0:00:02]}  Rh3+ {[%clk 0:00:07]} 41. Ke4 {[%clk 0:00:03]}  h5 {[%clk 0:00:05]} 42. Kd5 {[%clk 0:00:03]}  Bg1 {[%clk 0:00:03]} 43. Bc7+ {[%clk 0:00:04]}  Kb7 {[%clk 0:00:02]} 44. Bd6+ {[%clk 0:00:03]}  Kc8 {[%clk 0:00:01]} 45. Kc6 {[%clk 0:00:03]} 1-0


[Site "https://www.chess.com"]

[Event "Titled Tuesday Blitz February 28 Late 2023"]
[White "Ward, Ieuan C"]
[Black "WindWhistler11"]
[WhiteFideId "406627"]
[WhiteElo "2323"]
[BlackElo "2522"]
[Result "0-1"]
[Round "02"]
[TimeControl "180+2"]
[Date "2023.02.28"]
[WhiteClock "0:00:01"]
[BlackClock "0:00:24"]

1. d4 {[%clk 0:03:00]}  Nf6 {[%clk 0:02:58]} 2. c4 {[%clk 0:03:01]}  e6 {[%clk 0:02:57]} 3. Nf3 {[%clk 0:03:00]}  c5 {[%clk 0:02:57]} 4. d5 {[%clk 0:03:00]}  exd5 {[%clk 0:02:56]} 5. cxd5 {[%clk 0:03:00]}  Bd6 {[%clk 0:02:57]} 6. Nc3 {[%clk 0:03:00]}  O-O {[%clk 0:02:57]} 7. g3 {[%clk 0:03:00]}  Re8 {[%clk 0:02:57]} 8. Bg2 {[%clk 0:03:00]}  a6 {[%clk 0:02:57]} 9. a4 {[%clk 0:03:00]}  h6 {[%clk 0:02:57]} 10. O-O {[%clk 0:03:00]}  Bf8 {[%clk 0:02:57]} 11. Re1 {[%clk 0:02:59]}  d6 {[%clk 0:02:57]} 12. e4 {[%clk 0:03:00]}  Bg4 {[%clk 0:02:49]} 13. b3 {[%clk 0:02:59]}  Nbd7 {[%clk 0:02:43]} 14. h3 {[%clk 0:02:57]}  Bxf3 {[%clk 0:02:43]} 15. Bxf3 {[%clk 0:02:55]}  Rb8 {[%clk 0:02:42]} 16. Bb2 {[%clk 0:02:46]}  b5 {[%clk 0:02:42]} 17. axb5 {[%clk 0:02:46]}  axb5 {[%clk 0:02:42]} 18. Bg2 {[%clk 0:02:44]}  c4 {[%clk 0:02:26]} 19. b4 {[%clk 0:02:39]}  Ne5 {[%clk 0:02:21]} 20. Bf1 {[%clk 0:02:33]}  g5 {[%clk 0:01:59]} 21. Ra5 {[%clk 0:02:22]}  Qd7 {[%clk 0:01:53]} 22. f4 {[%clk 0:02:18]}  gxf4 {[%clk 0:01:44]} 23. gxf4 {[%clk 0:02:19]}  Ng6 {[%clk 0:01:43]} 24. Qf3 {[%clk 0:02:10]}  Bg7 {[%clk 0:01:19]} 25. Bg2 {[%clk 0:01:52]}  Kh8 {[%clk 0:01:07]} 26. Kh1 {[%clk 0:01:49]}  Nxd5 {[%clk 0:01:06]} 27. Nxd5 {[%clk 0:01:22]}  Bxb2 {[%clk 0:01:06]} 28. f5 {[%clk 0:01:18]}  Nf8 {[%clk 0:00:55]} 29. Qh5 {[%clk 0:01:15]}  Kh7 {[%clk 0:00:53]} 30. e5 {[%clk 0:01:11]}  Rxe5 {[%clk 0:00:47]} 31. Nf6+ {[%clk 0:01:09]}  Kg7 {[%clk 0:00:39]} 32. Nxd7 {[%clk 0:01:07]}  Rxe1+ {[%clk 0:00:38]} 33. Kh2 {[%clk 0:01:07]}  Nxd7 {[%clk 0:00:37]} 34. Bd5 {[%clk 0:00:57]}  Nf6 {[%clk 0:00:32]} 35. Qxf7+ {[%clk 0:00:55]}  Kh8 {[%clk 0:00:30]} 36. Ra7 {[%clk 0:00:51]}  Rg8 {[%clk 0:00:27]} 37. Ra8 {[%clk 0:00:01]}  Be5# {[%clk 0:00:24]} 0-1


[Site "https://www.chess.com"]

[Event "Titled Tuesday Blitz February 28 Late 2023"]
[White "Remolar Gallen, Jose"]
[Black "Meftahi, Houssem"]
[WhiteFideId "2215187"]
[BlackFideId "5501660"]
[WhiteElo "2223"]
[BlackElo "2124"]
[Result "1-0"]
[Round "02"]
[TimeControl "180+2"]
[Date "2023.02.28"]
[WhiteClock "0:00:49"]
[BlackClock "0:02:05"]

1. e4 {[%clk 0:03:00]}  c5 {[%clk 0:02:52]} 2. Nf3 {[%clk 0:03:00]}  Nc6 {[%clk 0:02:52]} 3. Bb5 {[%clk 0:02:59]}  e6 {[%clk 0:02:51]} 4. O-O {[%clk 0:02:58]}  Nge7 {[%clk 0:02:51]} 5. Re1 {[%clk 0:02:58]}  a6 {[%clk 0:02:51]} 6. Bf1 {[%clk 0:02:57]}  d5 {[%clk 0:02:51]} 7. exd5 {[%clk 0:02:50]}  Nxd5 {[%clk 0:02:51]} 8. d4 {[%clk 0:02:47]}  Nf6 {[%clk 0:02:51]} 9. Be3 {[%clk 0:02:32]}  cxd4 {[%clk 0:02:49]} 10. Nxd4 {[%clk 0:02:32]}  Nxd4 {[%clk 0:02:49]} 11. Qxd4 {[%clk 0:02:27]}  Qxd4 {[%clk 0:02:49]} 12. Bxd4 {[%clk 0:02:28]}  b5 {[%clk 0:02:45]} 13. a4 {[%clk 0:02:19]}  b4 {[%clk 0:02:44]} 14. Nd2 {[%clk 0:02:14]}  Bb7 {[%clk 0:02:40]} 15. Nc4 {[%clk 0:02:13]}  Be7 {[%clk 0:02:35]} 16. Na5 {[%clk 0:01:29]}  Bd5 {[%clk 0:02:32]} 17. c4 {[%clk 0:01:25]}  bxc3 {[%clk 0:02:30]} 18. bxc3 {[%clk 0:01:24]}  Bd8 {[%clk 0:02:26]} 19. Nc4 {[%clk 0:01:15]}  Nd7 {[%clk 0:02:13]} 20. Nd6+ {[%clk 0:01:03]}  Ke7 {[%clk 0:02:12]} 21. Nf5+ {[%clk 0:01:02]}  Ke8 {[%clk 0:02:07]} 22. Nxg7+ {[%clk 0:00:56]}  Kf8 {[%clk 0:02:05]} 23. Nxe6+ {[%clk 0:00:49]} 1-0


[Site "https://www.chess.com"]